[Event "Croatian Team Cup Final 2022"]
[Site "Vodice"]
[Date "2022.05.22"]
[Round "6.6"]
[White "Vojak, Daniel"]
[Black "Segovic, Goran"]
[Result "1/2-1/2"]
[ECO "C63"]
[WhiteElo "2335"]
[BlackElo "2291"]
[Annotator "TA"]
[PlyCount "34"]
[EventDate "2022.05.18"]
[EventType "team-tourn"]
[EventCountry "CRO"]
[SourceTitle "playchess.com"]
[Source "ChessBase"]
[SourceQuality "1"]
[TimeControl "40/5400+30:1800+30"]

{[%evp 13,21,52,36,0,12,-22,66,21,21,27]} 1. e4 {[%emt 0:00:12]} e5 {[%emt 0:00:34]} 2. Nf3 {[%emt 0:00:06]} Nc6 {[%emt 0:00:04]} 3. Bb5 {[%emt 0:00:07]} f5 {[%emt 0:00:25]} 4. Nc3 {[%emt 0:01:03]} fxe4 {[%emt 0:00:22]} 5. Nxe4 {[%emt 0:00:08]} Nf6 {[%emt 0:00:13]} 6. Nxf6+ {[%emt 0:00:37]} Qxf6 {[%emt 0:00:15]} 7. Qe2 {[%emt 0:00:13]} Be7 {[%emt 0:00:32]} 8. O-O {[%emt 0:00:41] C63: Ruy Lopez: Schliemann/Jaenisch Defence.} O-O {[%emt 0:03:19]} 9. Bxc6 {[%emt 0:02:25]} bxc6 {[%emt 0:05:33]} (9... Qxc6 $11 10. Re1 (10. Qxe5 Bf6 $11) 10... b6 11. Nxe5 (11. Qxe5 Bf6 $15) 11... Qxc2) 10. Qxe5 {[%emt 0:07:38]} d6 {[%emt 0:02:02]} 11. Qxf6 {[%emt 0:03:18] [#]  Weighted Error Value: White=0.38/Black=0.29 (precise)} {Predecessor:} Bxf6 $146 12. d3 Re8 13. Re1 Rxe1+ 14. Nxe1 Be6 15. Kf1 c5 16. Nf3 c4 17. Ng5 Bf5 {½-½ (41) Frolyanov,D (2599)-Zvjaginsev,V (2659) Taganrog 2011} 1/2-1/2

[Event "Croatian Team Cup Final 2022"]
[Site "Vodice"]
[Date "2022.05.22"]
[Round "6.7"]
[White "Makovec, Bruno"]
[Black "Starcevic, Ante Leon"]
[Result "1/2-1/2"]
[ECO "B36"]
[WhiteElo "2215"]
[BlackElo "2227"]
[Annotator "TA"]
[PlyCount "78"]
[EventDate "2022.05.18"]
[EventType "team-tourn"]
[EventCountry "CRO"]
[SourceTitle "playchess.com"]
[Source "ChessBase"]
[SourceQuality "1"]
[TimeControl "40/5400+30:1800+30"]

{[%evp 18,78,49,45,39,39,42,30,40,9,22,0,0,0,0,-19,-20,-16,-7,-10,-15,-12,-17,-7,-20,-16,-9,-16,-22,-31,-24,-15,-15,-16,-21,-21,-24,-24,-29,-150,-8,-8,-3,-16,0,0,0,0,0,0,0,0,0,0,0,0,0,0,0,0,0,0,0]} 1. Nf3 {[%emt 0:00:03]} Nf6 {[%emt 0:00:11]} 2. c4 {[%emt 0:01:32]} g6 {[%emt 0:00:33]} 3. Nc3 {[%emt 0:00:13]} c5 {[%emt 0:02:26]} 4. e4 {[%emt 0:01:20]} Nc6 {[%emt 0:00:10]} 5. d4 {[%emt 0:00:08]} cxd4 {[%emt 0:00:11]} 6. Nxd4 {[%emt 0:00:06]} Nxd4 {[%emt 0:00:06]} 7. Qxd4 {[%emt 0:00:26]} d6 {[%emt 0:00:20]} 8. Be2 {[%emt 0:07:26]} Bg7 {[%emt 0:00:04]} 9. Be3 {[%emt 0:05:12]} O-O {[%emt 0:00:26]} 10. Qd2 {[%emt 0:02:01]} a5 {[%emt 0:00:12] B36: Sicilian: Maroczy Bind: Gurgenidze System.} 11. O-O {[%emt 0:02:18]} a4 {[%emt 0:00:15]} 12. Rac1 {[%emt 0:06:11] 12.Bd4 is a critical line.} Qa5 {[%emt 0:01:18] White has an edge.} 13. Rfd1 {[%emt 0:06:13]} Be6 {[%emt 0:00:15]} 14. f3 {[%emt 0:02:46]} Rfc8 {[%emt 0:02:11]} 15. Nb5 {[%emt 0:08:55]} Qxd2 {[%emt 0:12:33]} 16. Bxd2 {[%emt 0:04:47]} Nd7 {[%emt 0:01:53]} 17. Bc3 {[%emt 0:11:46] [#]} Bxc4 $146 {[%emt 0:19:22]} (17... Ne5 {with more complications.} 18. b3 axb3 19. axb3 Ra2) ({Predecessor:} 17... Ne5 18. b3 axb3 19. axb3 Ra2 20. Kf1 Nc6 21. Ra1 Rca8 22. Rxa2 Rxa2 23. Rd2 Ra8 {0-1 (49) Richter,N (2267)-Schmaltz,R (2454) Baden Baden 2021}) 18. Bxc4 {[%emt 0:02:22]} Rxc4 {[%emt 0:00:24]} 19. Bxg7 $1 {[%emt 0:00:40]} Rxc1 {[%emt 0:00:17]} 20. Rxc1 {[%emt 0:00:03]} Kxg7 $11 {[%emt 0:00:08][%mdl 4096] Endgame KRN-KRN} 21. Rc7 {[%emt 0:01:29][%csl LRb7,LRd7]} Nc5 {[%emt 0:01:05] With the idea ...Ra6.} 22. Rxe7 {[%emt 0:03:24]} Ra6 {[%emt 0:00:42] [#] Hoping for ...Rb6.} 23. Rc7 {[%emt 0:10:27]} Rb6 $1 {[%emt 0:00:51]} 24. Nxd6 {[%emt 0:11:24]} Rxd6 {[%emt 0:00:07]} 25. Rxc5 {[%emt 0:00:03] KR-KR} Rd1+ {[%emt 0:00:06]} 26. Kf2 {[%emt 0:00:02]} Rd2+ {[%emt 0:00:07]} 27. Kg3 {[%emt 0:00:14]} Rxb2 {[%emt 0:00:08] And now ...b6 would win.} 28. e5 {[%emt 0:05:15] [#]} (28. a3 $11 {keeps the balance.}) 28... b5 {[%emt 0:16:08]} (28... Rxa2 29. Rb5 $15) ({Better is} 28... b6 $1 $17 {[%cal Rb6c5]} 29. Rc6 a3) 29. a3 {[%emt 0:03:48] The position is equal.} Rb3 {[%emt 0:09:22]} 30. h4 {[%emt 0:01:02]} h5 {[%emt 0:01:27]} 31. Kf4 {[%emt 0:00:39]} Rb2 {[%emt 0:05:11]} 32. Rc7 {[%emt 0:01:21]} Kf8 {[%emt 0:07:36]} ({Much weaker is} 32... Rxg2 33. e6 Kf6 34. e7 $15 (34. exf7 Kg7 $11)) 33. Kg5 {[%emt 0:01:44] Threatens to win with Kf6.} Kg7 {[%emt 0:00:52]} (33... Rxg2+ $2 34. Kf6 Ke8 35. Rxf7 $18) 34. Kf4 {[%emt 0:00:46]} Rxg2 {[%emt 0:02:24]} 35. e6 {[%emt 0:00:22]} Kf6 {[%emt 0:00:03]} 36. exf7 {[%emt 0:00:52]} Kg7 {[%emt 0:00:21]} 37. Rb7 {[%emt 0:00:27]} Rb2 {[%emt 0:00:51]} 38. Kg5 {[%emt 0:00:41]} Rg2+ {[%emt 0:04:31]} 39. Kf4 {[%emt 0:00:06]} Rb2 {[%emt 0:02:26] Weighted Error Value: White=0.11 (very precise) /Black=0.11 (very precise)} 1/2-1/2

[Event "Croatian Team Cup Final 2022"]
[Site "Vodice"]
[Date "2022.05.22"]
[Round "6.8"]
[White "Novosel, Lovro"]
[Black "Havas, Janko"]
[Result "1-0"]
[ECO "E60"]
[WhiteElo "2279"]
[BlackElo "2162"]
[Annotator "TA"]
[PlyCount "133"]
[EventDate "2022.05.18"]
[EventType "team-tourn"]
[EventCountry "CRO"]
[SourceTitle "playchess.com"]
[Source "ChessBase"]
[SourceQuality "1"]
[TimeControl "40/5400+30:1800+30"]

{[%evp 11,133,39,35,13,20,18,26,22,30,25,52,0,56,46,49,31,57,49,74,68,63,73,101,86,84,52,97,87,172,164,265,270,235,18,26,22,32,37,29,0,0,-15,0,0,25,0,0,-108,-109,-124,-102,-206,-168,-162,-175,-169,-172,-147,-136,-127,-125,-130,-22,-14,0,0,0,0,0,0,52,3,0,0,0,0,0,0,9,0,0,0,0,0,12,0,0,0,0,-10,-10,-8,136,118,262,259,245,257,611,589,742,736,1007,1002,905,711,669,566,574,568,561,554,554,527,633,551,593,571,630,623,621,616,729,701]} 1. Nf3 {[%emt 0:00:12]} Nf6 {[%emt 0:00:07]} 2. g3 {[%emt 0:00:13]} g6 {[%emt 0:00:07]} 3. Bg2 {[%emt 0:00:08]} Bg7 {[%emt 0:00:08]} 4. O-O {[%emt 0:00:17]} O-O {[%emt 0:00:06]} 5. d4 {[%emt 0:00:07]} d6 {[%emt 0:00:06]} 6. c4 {[%emt 0:00:28]} Bf5 {[%emt 0:00:16]} 7. Nfd2 {[%emt 0:03:16] E60: King's Indian: Unusual lines and Fianchetto Variation without Nc3.} Nc6 {[%emt 0:06:25]} 8. d5 {[%emt 0:01:15]} Nb4 {[%emt 0:07:00] [#]} 9. a3 $146 {[%emt 0:09:30] White has an edge.} ({Predecessor:} 9. e4 Bg4 10. f3 Bc8 11. Nb3 c6 12. a3 Na6 13. Be3 c5 14. Nc3 Nc7 15. Qd2 {1-0 (49) Stefansky,M-Novikov,A Dnipropetrovsk 2007}) 9... Na6 {[%emt 0:01:46][%cal Oc7c6]} 10. Nc3 {[%emt 0:00:27]} Qc8 {[%emt 0:04:09]} 11. Re1 {[%emt 0:01:15]} (11. b4 $14) 11... e5 {[%emt 0:09:58]} (11... c6) (11... c6 $11) 12. b4 {[%emt 0:08:11]} Bh3 {[%emt 0:05:21]} 13. Bh1 {[%emt 0:00:07]} e4 {[%emt 0:09:57][%cal Oe4e3]} 14. e3 {[%emt 0:09:15]} Ng4 {[%emt 0:01:33]} (14... Nxd5 15. Nxd5 Kh8 16. Ra2) (14... Nxd5 $2 15. Nxd5 $1 Kh8 16. Ra2 $18) 15. Bb2 {[%emt 0:00:39]} (15. Ndxe4 f5 16. Ng5 Bxc3) (15. Ndxe4 f5 16. Ng5 Bxc3 $15) 15... f5 {[%emt 0:00:17]} 16. Qb3 {[%emt 0:02:45]} Ne5 {[%emt 0:04:27]} 17. Ne2 $1 {[%emt 0:00:30][%cal Bc3e2,Be2d4,Bd4e6][%mdl 32]} g5 {[%emt 0:03:18] Inhibits Nf4.} 18. Bc3 {[%emt 0:01:58]} Qe8 {[%emt 0:03:09]} 19. Nd4 $1 {[%emt 0:01:37]} Qh5 {[%emt 0:16:51]} (19... Rf6) (19... Rf6 $16) 20. Ne6 $18 {[%emt 0:03:27]} Rf6 {[%emt 0:01:00]} (20... Bg4 $142) 21. Bxe5 {[%emt 0:10:31]} dxe5 {[%emt 0:00:08] [#]} 22. b5 $2 {[%emt 0:01:12]} ({White should play} 22. c5 $1 $18) 22... Rxe6 $1 $11 {[%emt 0:01:40]} 23. bxa6 {[%emt 0:01:06]} (23. dxe6 Nc5 24. Qd1 Qe8 $11) 23... Rb6 {[%emt 0:00:34][%cal Be6b6,Bb6b7,Bb7b5][%mdl 32]} (23... Rxa6 $2 24. Qxb7 Qe8 25. Qxa6 $18) 24. axb7 {[%emt 0:00:50]} Rb8 {[%emt 0:01:26]} 25. Qa4 {[%emt 0:01:32]} R6xb7 {[%emt 0:02:54]} (25... Rb2 26. Nb3 (26. Qd7 R2xb7 27. Bg2 Bxg2 $11) 26... Rxb7 27. Nc5 $16) 26. c5 {[%emt 0:00:13]} Qf7 $36 {[%emt 0:03:10][%mdl 2048] White is under pressure.} 27. Qc6 {[%emt 0:16:39]} Qe8 {[%emt 0:04:04]} 28. Qxe8+ {[%emt 0:01:40]} Rxe8 {[%emt 0:00:01]} 29. Nc4 {[%emt 0:00:34]} (29. Bg2 $11 {remains equal.} Bxg2 30. Kxg2) 29... Rb5 $17 {[%emt 0:02:14]} 30. Rac1 {[%emt 0:03:25]} Rxc5 {[%emt 0:00:20]} 31. d6 {[%emt 0:01:46]} (31. Bg2 $17 {is a better defense.} Bxg2 32. Kxg2) 31... cxd6 {[%emt 0:00:14]} 32. Nxd6 {[%emt 0:00:06]} Rxc1 {[%emt 0:00:13]} 33. Rxc1 {[%emt 0:00:04]} Rd8 {[%emt 0:03:32]} 34. Nc8 {[%emt 0:06:26][%cal Bd6c8,Bc8a7,Ba7c6][%mdl 32]} Bf8 {[%emt 0:03:07]} 35. Nxa7 {[%emt 0:01:12]} Bxa3 {[%emt 0:00:14]} 36. Rb1 {[%emt 0:00:43]} f4 {[%emt 0:03:38]} (36... Rd2 $17 {Strongly threatening ...Rc2.} 37. Nc6 Bd6) 37. Nc6 $11 {[%emt 0:01:10]} Rc8 {[%emt 0:01:31]} 38. Bxe4 {[%emt 0:00:31]} fxe3 {[%emt 0:00:33]} 39. fxe3 {[%emt 0:00:10]} Bc5 {[%emt 0:00:49]} 40. Kf2 {[%emt 0:00:00]} Bf5 {[%emt 0:00:00]} 41. Bd5+ {[%emt 0:07:01]} (41. Bxf5 $14 {is more appropriate.} Rxc6 42. Kf3) 41... Kh8 {[%emt 0:04:20]} 42. Rb5 {[%emt 0:00:33]} Bd6 {[%emt 0:01:35]} 43. Rb7 {[%emt 0:00:50]} Rf8 {[%emt 0:01:56] And now ...Be6+ would win.} 44. Ke1 {[%emt 0:02:32]} Re8 {[%emt 0:11:14]} 45. e4 {[%emt 0:04:02]} Bg4 {[%emt 0:01:07]} 46. Rf7 {[%emt 0:02:16]} Bc5 {[%emt 0:03:35]} 47. Rb7 {[%emt 0:06:58]} Bg1 {[%emt 0:02:19]} 48. Kf1 {[%emt 0:00:14]} Be3 {[%emt 0:01:11]} 49. Kg2 {[%emt 0:12:25]} Rf8 {[%emt 0:02:26] ( -> ...Rf2+)} 50. Rb2 {[%emt 0:01:12] Inhibits Rf2+.} (50. Nxe5 {leads to mate.} Rf2+ 51. Kg1 Rd2+ 52. Kf1 Rd1+ 53. Kg2 Rg1#) 50... Bf3+ {[%emt 0:00:17] A strong pair of Bishops.} 51. Kh3 {[%emt 0:00:11]} g4+ {[%emt 0:01:03]} (51... h5 $11 {keeps the balance.} 52. Nxe5 Bd4 53. Nxf3 (53. Ng6+ $2 Kg7 $19) 53... Bxb2 54. Nxg5 Rf2) 52. Kh4 $16 {[%emt 0:00:00]} Bh6 {[%emt 0:05:52]} (52... Rf6 $16 53. Rb8+ Kg7 54. Rg8+ Kh6 55. Nxe5 Bd4) 53. Rb7 $18 {[%emt 0:02:03]} ({Not} 53. Nxe5 Bg7 54. Nd7 Bxb2 $11) 53... Re8 {[%emt 0:01:17] [#]} 54. Ne7 $1 {[%emt 0:02:16]} Be3 $2 {[%emt 0:00:57]} (54... Rf8 55. Rd7 Rb8) 55. Nf5 {[%emt 0:00:26] White is clearly winning.} Bd2 {[%emt 0:01:05]} 56. Nd6 {[%emt 0:01:00]} Ra8 {[%emt 0:00:52]} 57. Nf7+ {[%emt 0:01:05]} Kg7 {[%emt 0:00:29]} 58. Nxe5+ {[%emt 0:00:24]} Kf6 {[%emt 0:00:30]} 59. Rf7+ {[%emt 0:00:23]} Kxe5 {[%emt 0:00:07]} 60. Bxa8 {[%emt 0:00:06][%mdl 4096] Endgame KRB-KB} h6 {[%emt 0:00:18]} 61. Rf5+ {[%emt 0:00:48]} Ke6 {[%emt 0:00:46]} 62. Bd5+ {[%emt 0:00:19]} Ke7 {[%emt 0:00:00]} 63. Kh5 {[%emt 0:00:31]} Bg5 {[%emt 0:00:21]} 64. Kg6 {[%emt 0:00:15]} Be3 {[%emt 0:00:13]} 65. Rf7+ {[%emt 0:00:29]} Kd6 {[%emt 0:00:05]} 66. Kf5 {[%emt 0:00:05]} Bg1 {[%emt 0:00:15]} 67. Rf6+ {[%emt 0:00:08] A wild game.  Weighted Error Value: White=0.18 (very precise) /Black=0.32} 1-0

[Event "Croatian Team Cup Final 2022"]
[Site "Vodice"]
[Date "2022.05.22"]
[Round "6.9"]
[White "Saric, Ivan"]
[Black "Jovanovic, Zoran"]
[Result "1/2-1/2"]
[ECO "B00"]
[WhiteElo "2693"]
[BlackElo "2523"]
[Annotator "TA"]
[PlyCount "75"]
[EventDate "2022.05.18"]
[EventType "team-tourn"]
[EventCountry "CRO"]
[SourceTitle "playchess.com"]
[Source "ChessBase"]
[SourceQuality "1"]
[TimeControl "40/5400+30:1800+30"]

{[%evp 17,75,32,32,46,49,45,50,57,39,16,18,17,21,18,26,31,25,17,27,21,29,9,18,0,0,0,0,-22,0,0,0,0,0,-10,0,-16,-19,-19,-13,-12,-7,-3,0,-6,0,0,0,-37,-31,-48,0,0,0,-27,-31,-58,-54,-54,0,0]} 1. e4 {[%emt 0:00:01]} Nc6 {[%emt 0:06:04]} 2. Nf3 {[%emt 0:00:48]} d6 {[%emt 0:00:06]} 3. d4 {[%emt 0:00:13]} Nf6 {[%emt 0:00:05]} 4. Nc3 {[%emt 0:00:03]} Bg4 {[%emt 0:00:03]} 5. Bb5 {[%emt 0:07:36]} a6 {[%emt 0:01:50]} 6. Bxc6+ {[%emt 0:00:03]} bxc6 {[%emt 0:00:03]} 7. h3 {[%emt 0:01:29]} Bh5 {[%emt 0:01:24]} 8. Qe2 {[%emt 0:01:41]} e6 {[%emt 0:05:42]} 9. g4 {[%emt 0:20:12]} Bg6 {[%emt 0:00:41]} 10. h4 {[%emt 0:04:21] [#] Hoping for h5. B00: Queen's Fianchetto Defence, Nimzowitsch Defence.} h5 {[%emt 0:08:52]} 11. g5 {[%emt 0:00:05]} Nd7 {[%emt 0:03:00]} 12. Qc4 {[%emt 0:00:32] White is slightly better.} Nb8 {[%emt 0:08:50] [#]} 13. Bf4 $146 {[%emt 0:04:00]} ({Predecessor:} 13. Be3 d5 14. Qd3 Nd7 15. Nd2 Qb8 16. f4 dxe4 17. Qc4 Qb7 18. Ndxe4 Nb6 19. Qb3 {0-1 (34) Schut,H (2101)-Dobre,C (2314) Chess.com INT 2020}) 13... Be7 {[%emt 0:00:29]} 14. O-O-O {[%emt 0:00:45]} Qc8 {[%emt 0:04:44]} 15. Rhe1 {[%emt 0:01:26]} O-O {[%emt 0:03:59]} 16. Bg3 {[%emt 0:02:03]} Qb7 {[%emt 0:09:12]} 17. Qb3 {[%emt 0:11:21]} Qxb3 {[%emt 0:05:07]} 18. axb3 {[%emt 0:00:04]} Nd7 {[%emt 0:00:24]} 19. Nd2 {[%emt 0:01:03]} f5 {[%emt 0:05:37]} 20. gxf6 {[%emt 0:00:53]} gxf6 {[%emt 0:00:23]} 21. Nc4 {[%emt 0:02:20]} a5 {[%emt 0:06:39]} 22. Kd2 {[%emt 0:01:18]} Nb6 {[%emt 0:01:32]} 23. Ra1 {[%emt 0:01:35]} Nxc4+ {[%emt 0:00:22]} 24. bxc4 {[%emt 0:00:01]} f5 {[%emt 0:00:09]} 25. exf5 {[%emt 0:05:40]} Bxf5 {[%emt 0:00:19]} 26. d5 {[%emt 0:00:34]} cxd5 {[%emt 0:07:51]} 27. cxd5 {[%emt 0:06:08]} e5 {[%emt 0:04:35]} 28. Ra4 {[%emt 0:00:23]} Rfb8 {[%emt 0:00:52]} 29. b3 {[%emt 0:00:43]} Rb4 {[%emt 0:00:14]} 30. Rea1 {[%emt 0:02:40] [#] Rxb4 is the strong threat.} Rxa4 {[%emt 0:00:41]} 31. Rxa4 {[%emt 0:00:11]} Bd7 {[%emt 0:00:15] A strong pair of Bishops.} 32. Ra3 {[%emt 0:03:55]} Kf7 {[%emt 0:01:46]} 33. Kd3 {[%emt 0:02:22]} Bf5+ {[%emt 0:00:46]} (33... c6 $15) 34. Kd2 $1 $11 {[%emt 0:00:26][%cal Ob3b4]} Bd7 {[%emt 0:00:26]} 35. Nd1 {[%emt 0:01:59]} c6 {[%emt 0:02:32]} 36. Ne3 {[%emt 0:00:55]} cxd5 {[%emt 0:00:14]} 37. Nxd5 {[%emt 0:00:03]} Bc6 {[%emt 0:00:06]} (37... Bd8 $1 $15) 38. Nxe7 {[%emt 0:03:53] Weighted Error Value: White=0.09 (flawless) /Black=0.06 (flawless)} 1/2-1/2

[Event "Croatian Team Cup Final 2022"]
[Site "Vodice"]
[Date "2022.05.22"]
[Round "6.10"]
[White "Bukal, Vladimir Jr."]
[Black "Markus, Robert"]
[Result "0-1"]
[ECO "A49"]
[WhiteElo "2371"]
[BlackElo "2613"]
[Annotator "TA"]
[PlyCount "36"]
[EventDate "2022.05.18"]
[EventType "team-tourn"]
[EventCountry "CRO"]
[SourceTitle "playchess.com"]
[Source "ChessBase"]
[SourceQuality "1"]
[TimeControl "40/5400+30:1800+30"]

{[%evp 12,36,19,15,16,13,3,6,22,22,42,-137,-133,-210,-213,-212,-206,-210,-210,-213,-209,-250,-240,-321,-304,-288,-251]} 1. d4 {[%emt 0:00:04]} Nf6 {[%emt 0:00:14]} 2. Nf3 {[%emt 0:00:19]} d6 {[%emt 0:00:09]} 3. g3 {[%emt 0:00:27]} g6 {[%emt 0:00:08]} 4. Bg2 {[%emt 0:00:07]} Bg7 {[%emt 0:00:07]} 5. O-O {[%emt 0:00:06]} O-O {[%emt 0:00:08]} 6. Nc3 {[%emt 0:00:13]} d5 {[%emt 0:05:56]} 7. Re1 {[%emt 0:00:43]} Bf5 {[%emt 0:01:11] A49: 1 d4 Nf6 2 Nf3 g6 3 g3: Anti-King's Indian systems.} 8. Nh4 {[%emt 0:02:58]} Be6 {[%emt 0:04:19]} 9. e4 {[%emt 0:04:04]} dxe4 {[%emt 0:00:29] The position is equal.} 10. Nxe4 {[%emt 0:00:08]} Bd5 {[%emt 0:02:30] [#]} 11. Bg5 $146 {[%emt 0:07:07] [#]} (11. Nxf6+ $14 {keeps the upper hand.} Bxf6 12. Bh6) ({Predecessor:} 11. Nxf6+ Bxf6 12. Nf3 Nd7 13. Bh6 Re8 14. c3 c5 15. dxc5 {½-½ (15) Predke,A (2619)-Espinosa Aranda,A (2482) La Roda 2019}) 11... Nxe4 $1 $17 {[%emt 0:02:40]} 12. Bxe4 {[%emt 0:00:09]} (12. Rxe4 $17 Bxe4 13. Bxe4) 12... Bxe4 $19 {[%emt 0:00:07]} 13. Rxe4 {[%emt 0:00:05] [#]} Qd5 $1 {[%emt 0:00:07][%csl LRe4,LRg5]} 14. Rg4 {[%emt 0:05:56]} h5 {[%emt 0:04:38]} 15. c4 {[%emt 0:00:15]} Qxc4 {[%emt 0:00:01]} 16. Rf4 {[%emt 0:03:55]} Nc6 {[%emt 0:02:19]} 17. Rc1 {[%emt 0:09:09]} Qxa2 {[%emt 0:01:21]} 18. b3 {[%emt 0:03:44]} Rfd8 {[%emt 0:04:20] Black took control after the opening.  Weighted Error Value: White=0.47/Black=0.02 (flawless)} 0-1

[Event "Croatian Team Cup Final 2022"]
[Site "Vodice"]
[Date "2022.05.22"]
[Round "6.11"]
[White "Jovanic, Ognjen"]
[Black "Blazeka, Matej"]
[Result "1-0"]
[ECO "D11"]
[WhiteElo "2509"]
[BlackElo "2333"]
[Annotator "TA"]
[PlyCount "57"]
[EventDate "2022.05.18"]
[EventType "team-tourn"]
[EventCountry "CRO"]
[SourceTitle "playchess.com"]
[Source "ChessBase"]
[SourceQuality "1"]
[TimeControl "40/5400+30:1800+30"]

{[%evp 11,57,4,15,7,16,6,40,33,44,42,43,29,39,43,47,39,44,38,41,43,46,37,26,22,4,47,67,63,68,49,70,63,118,100,145,137,272,283,301,300,293,301,298,279,530,309,830,822]} 1. d4 {[%emt 0:00:03]} d5 {[%emt 0:05:39]} 2. c4 {[%emt 0:01:33]} c6 {[%emt 0:00:02]} 3. Nf3 {[%emt 0:00:35]} Nf6 {[%emt 0:00:03]} 4. e3 {[%emt 0:02:16]} Bg4 {[%emt 0:07:05]} 5. Nc3 {[%emt 0:00:54]} e6 {[%emt 0:00:34]} 6. Qb3 {[%emt 0:01:07]} Qc7 {[%emt 0:03:28]} 7. Nh4 {[%emt 0:02:56] [#] D11: Slav Defence: 3 Nf3 sidelines and 3...Nf6 4 e3 Bg4.} dxc4 $146 {[%emt 0:22:12]} ({Predecessor:} 7... Be7 8. h3 Bh5 9. g4 Bg6 10. Nxg6 hxg6 11. Bg2 Nbd7 12. cxd5 exd5 13. Qc2 Bd6 14. Bd2 O-O-O {0-1 (28) Dreev,A (2653)-Korobov,A (2652) Riadh 2017}) 8. Bxc4 {[%emt 0:00:30]} b5 {[%emt 0:00:35]} 9. Bd3 {[%emt 0:04:01] White is slightly better.} Nbd7 {[%emt 0:02:40]} 10. h3 {[%emt 0:06:04]} Bh5 {[%emt 0:00:21]} 11. Bd2 {[%emt 0:02:55]} Be7 {[%emt 0:01:16]} 12. g4 {[%emt 0:07:20]} Bg6 {[%emt 0:01:08]} 13. Nxg6 {[%emt 0:00:18]} hxg6 {[%emt 0:00:06]} 14. g5 {[%emt 0:00:15]} Nd5 {[%emt 0:04:25]} 15. Rc1 {[%emt 0:04:41]} Qb7 {[%emt 0:13:17]} 16. Ne4 $36 {[%emt 0:06:20][%cal Bc3e4,Be4f2,Bf2g4][%mdl 2080] White is pushing.} e5 {[%emt 0:03:46]} 17. dxe5 {[%emt 0:01:39]} Nxe5 {[%emt 0:01:04]} 18. Be2 {[%emt 0:01:02]} Rh4 {[%emt 0:02:47]} 19. f4 {[%emt 0:00:31]} Qb6 {[%emt 0:01:48]} 20. Nf2 {[%emt 0:09:45]} Nd7 {[%emt 0:04:16]} 21. Ng4 {[%emt 0:05:09]} Nc5 {[%emt 0:13:10]} (21... Bd6 $14) 22. Qc2 $16 {[%emt 0:00:21] And now e4 would win.} a5 {[%emt 0:01:48] [#]} 23. a3 $1 {[%emt 0:04:08]} b4 {[%emt 0:01:36]} (23... Qc7 $16) 24. e4 $18 {[%emt 0:01:49][%cal Be3e4,Be4f5,Bf5e6][%mdl 32]} Nc7 {[%emt 0:07:54]} 25. Be3 {[%emt 0:01:20]} N7e6 {[%emt 0:01:13]} 26. f5 {[%emt 0:00:39]} gxf5 {[%emt 0:00:38]} 27. exf5 {[%emt 0:00:03]} bxa3 $2 {[%emt 0:00:37] [#]} (27... Nxg5 28. Bxg5 Bxg5) 28. bxa3 {[%emt 0:00:39]} Qb3 {[%emt 0:00:31]} (28... Nxg5 29. Bxg5 Bxg5 30. Qxc5 Qxc5 31. Rxc5 Be7) 29. fxe6 {[%emt 0:01:04] Weighted Error Value: White=0.12 (very precise) /Black=0.37} 1-0